[Event "Championnat du monde jeunes U12F"]
[Date "2024.11.25"]
[White "Xu, Luna Yuexiu"]
[Black "Bassari, Senem Gul"]
[WhiteElo "1821"]
[BlackElo "1778"]
[Round "10.7"]
[Result "1-0"]
[TimeControl "5400+30"]

1. e4 {[%clk 1:30:57]} 1... c5 {[%clk 1:30:53]} 2. Nf3 {[%clk 1:31:10]} 2... d6
{[%clk 1:31:17]} 3. d4 {[%clk 1:31:33]} 3... cxd4 {[%clk 1:31:42]} 4. Nxd4
{[%clk 1:31:54]} 4... Nf6 {[%clk 1:32:09]} 5. Nc3 {[%clk 1:32:11]} 5... a6
{[%clk 1:32:34]} 6. Be2 {[%clk 1:32:21]} 6... e5 {[%clk 1:32:58]} 7. Nb3 {[%clk
1:32:33]} 7... Be7 {[%clk 1:33:21]} 8. Be3 {[%clk 1:32:29]} 8... Be6 {[%clk
1:33:37]} 9. O-O {[%clk 1:32:46]} 9... Nbd7 {[%clk 1:33:44]} 10. f3 {[%clk
1:32:26]} 10... O-O {[%clk 1:34:00]} 11. Nd5 {[%clk 1:32:25]} 11... Bxd5 {[%clk
1:33:43]} 12. exd5 {[%clk 1:32:44]} 12... Qc7 {[%clk 1:33:10]} 13. c4 {[%clk
1:32:07]} 13... b6 {[%clk 1:33:14]} 14. Qd2 {[%clk 1:30:53]} 14... a5 {[%clk
1:33:07]} 15. a4 {[%clk 1:30:30]} 15... Ne8 {[%clk 1:32:12]} 16. Nc1 {[%clk
1:27:22]} 16... f5 {[%clk 1:30:17]} 17. Qc2 {[%clk 1:26:08]} 17... f4 {[%clk
1:23:26]} 18. Bf2 {[%clk 1:26:29]} 18... Nef6 {[%clk 1:22:07]} 19. Kh1 {[%clk
1:18:27]} 19... Nxd5 {[%clk 1:03:56]} 20. Qb3 {[%clk 1:18:33]} 20... Nb4 {[%clk
1:00:22]} 21. c5+ {[%clk 1:16:59]} 21... Kh8 {[%clk 0:58:24]} 22. cxb6 {[%clk
1:15:36]} 22... Nxb6 {[%clk 0:57:40]} 23. Bxb6 {[%clk 1:14:39]} 23... Qxb6
{[%clk 0:57:40]} 24. Na2 {[%clk 1:10:17]} 24... Rab8 {[%clk 0:51:27]} 25. Nxb4
{[%clk 1:07:29]} 25... Qxb4 {[%clk 0:51:01]} 26. Qe6 {[%clk 1:06:55]} 26... Qb7
{[%clk 0:42:29]} 27. Bd3 {[%clk 1:04:02]} 27... Rf6 {[%clk 0:37:08]} 28. Qg4
{[%clk 0:59:15]} 28... Rh6 {[%clk 0:26:19]} 29. Rac1 {[%clk 0:56:07]} 29... Bd8
{[%clk 0:21:09]} 30. Rfd1 {[%clk 0:50:41]} 30... d5 {[%clk 0:14:47]} 31. Qf5
{[%clk 0:46:30]} 31... Bf6 {[%clk 0:13:57]} 32. Rc5 {[%clk 0:45:15]} 32... Rd8
{[%clk 0:04:07]} 33. Be4 {[%clk 0:44:35]} 33... Qb3 {[%clk 0:03:19]} 34. Bc2
{[%clk 0:44:00]} 34... Qb7 {[%clk 0:01:17]} 35. Rb5 {[%clk 0:39:53]} 35... Qa8
{[%clk 0:00:39]} 36. Qe6 {[%clk 0:38:13]} 36... Bh4 {[%clk 0:00:33]} 37. Qxe5
{[%clk 0:38:06]} 37... Bg3 {[%clk 0:00:38]} 38. h3 {[%clk 0:38:28]} 38... d4
{[%clk 0:00:45]} 39. Rxd4 {[%clk 0:37:28]} 39... Rxh3+ {[%clk 0:00:37]} 40. Kg1
{[%clk 0:37:30]} 40... Qa7 {[%clk 0:00:31]} 41. Rd5 {[%clk 0:36:13]} 41... Bh2+
{[%clk 0:00:35]} 42. Kf1 {[%clk 0:36:33]} 42... Rf8 {[%clk 0:00:33]} 43. Rd8
{[%clk 0:35:53]} 43... Qf7 {[%clk 0:00:35]} 44. Rxf8+ {[%clk 0:36:13]} 44...
Qxf8 {[%clk 0:01:01]} 45. gxh3 {[%clk 0:36:26]} 45... Qc8 {[%clk 0:01:24]} 46.
Qf5 {[%clk 0:36:23]} 46... Qa6+ {[%clk 0:01:49]} 47. Bd3 {[%clk 0:36:46]} 1-0

[Variant "Standard"]
[Site "Europe Echecs"]

[Event "Championnat du monde jeunes U12F"]
[Date "2024.11.25"]
[White "Li, Peishan"]
[Black "Jordan, Christina"]
[WhiteElo "1729"]
[BlackElo "1803"]
[Round "10.8"]
[Result "1-0"]
[TimeControl "5400+30"]

1. e4 {[%clk 1:30:57]} 1... c5 {[%clk 1:30:47]} 2. Nf3 {[%clk 1:31:24]} 2... d6
{[%clk 1:31:08]} 3. d4 {[%clk 1:31:51]} 3... cxd4 {[%clk 1:31:24]} 4. Nxd4
{[%clk 1:32:20]} 4... Nf6 {[%clk 1:31:38]} 5. Nc3 {[%clk 1:32:47]} 5... a6
{[%clk 1:31:49]} 6. Be2 {[%clk 1:33:11]} 6... e5 {[%clk 1:31:54]} 7. Nb3 {[%clk
1:33:38]} 7... Be7 {[%clk 1:32:07]} 8. O-O {[%clk 1:34:02]} 8... O-O {[%clk
1:32:23]} 9. Qd3 {[%clk 1:34:18]} 9... Nc6 {[%clk 1:28:36]} 10. a3 {[%clk
1:34:32]} 10... Be6 {[%clk 1:27:31]} 11. Be3 {[%clk 1:34:55]} 11... Rc8 {[%clk
1:26:44]} 12. Rfd1 {[%clk 1:34:41]} 12... Qc7 {[%clk 1:13:30]} 13. Rac1 {[%clk
1:28:20]} 13... Rfd8 {[%clk 1:01:14]} 14. Nd5 {[%clk 1:23:54]} 14... Bxd5 {[%clk
1:00:16]} 15. exd5 {[%clk 1:24:19]} 15... Nb8 {[%clk 0:59:25]} 16. c4 {[%clk
1:19:05]} 16... Nbd7 {[%clk 0:53:16]} 17. Nd2 {[%clk 1:15:11]} 17... Nc5 {[%clk
0:44:12]} 18. Qb1 {[%clk 1:13:06]} 18... b6 {[%clk 0:42:09]} 19. b4 {[%clk
1:11:38]} 19... Ncd7 {[%clk 0:41:14]} 20. Nb3 {[%clk 1:08:17]} 20... Rb8 {[%clk
0:29:56]} 21. Qd3 {[%clk 1:03:35]} 21... Rbc8 {[%clk 0:22:30]} 22. Qd2 {[%clk
0:54:55]} 22... Qb7 {[%clk 0:17:04]} 23. Rb1 {[%clk 0:46:37]} 23... Qc7 {[%clk
0:14:00]} 24. Rdc1 {[%clk 0:37:51]} 24... Rb8 {[%clk 0:10:06]} 25. Bf3 {[%clk
0:27:21]} 25... Rdc8 {[%clk 0:08:15]} 26. Be2 {[%clk 0:25:24]} 26... Rd8 {[%clk
0:08:18]} 27. a4 {[%clk 0:24:44]} 27... Rdc8 {[%clk 0:05:16]} 28. a5 {[%clk
0:23:44]} 28... Ne4 {[%clk 0:00:57]} 29. Qd3 {[%clk 0:21:12]} 29... Nef6 {[%clk
0:01:19]} 30. axb6 {[%clk 0:21:33]} 30... Nxb6 {[%clk 0:01:46]} 31. Na5 {[%clk
0:21:51]} 31... e4 {[%clk 0:01:11]} 32. Qd4 {[%clk 0:20:48]} 32... Bd8 {[%clk
0:01:05]} 33. Nc6 {[%clk 0:20:37]} 33... Rb7 {[%clk 0:01:29]} 34. Ra1 {[%clk
0:20:18]} 34... Ra8 {[%clk 0:01:47]} 35. Bf4 {[%clk 0:16:27]} 35... Qd7 {[%clk
0:01:24]} 36. Ra3 {[%clk 0:15:23]} 36... Bc7 {[%clk 0:00:56]} 37. Bg5 {[%clk
0:15:27]} 37... Bd8 {[%clk 0:01:08]} 38. Rca1 {[%clk 0:14:08]} 38... h6 {[%clk
0:01:07]} 39. Bh4 {[%clk 0:12:47]} 39... g5 {[%clk 0:00:50]} 40. Bg3 {[%clk
0:13:12]} 40... h5 {[%clk 0:00:50]} 41. h4 {[%clk 0:13:09]} 41... Ne8 {[%clk
0:00:34]} 42. Nxd8 {[%clk 0:10:48]} 42... Qxd8 {[%clk 0:00:57]} 43. Qxe4 {[%clk
0:09:50]} 43... Re7 {[%clk 0:00:49]} 44. Qd3 {[%clk 0:09:32]} 44... Rc8 {[%clk
0:01:00]} 45. Rc1 {[%clk 0:05:29]} 45... Rec7 {[%clk 0:01:08]} 46. c5 {[%clk
0:03:46]} 46... Re7 {[%clk 0:00:50]} 47. c6 {[%clk 0:03:15]} 47... Nxd5 {[%clk
0:00:58]} 48. Qxd5 {[%clk 0:03:39]} 48... Rxe2 {[%clk 0:01:23]} 49. hxg5 {[%clk
0:02:07]} 49... Qb6 {[%clk 0:01:02]} 50. g6 {[%clk 0:02:09]} 50... Re7 {[%clk
0:00:54]} 51. Bxd6 {[%clk 0:01:26]} 51... Nxd6 {[%clk 0:00:50]} 52. Qxd6 {[%clk
0:01:53]} 52... Rce8 {[%clk 0:00:38]} 53. gxf7+ {[%clk 0:02:14]} 53... Rxf7
{[%clk 0:01:00]} 54. Rg3+ {[%clk 0:02:33]} 54... Rg7 {[%clk 0:01:04]} 55. Qd5+
{[%clk 0:02:56]} 55... Kf8 {[%clk 0:01:02]} 56. Rf3+ {[%clk 0:03:13]} 56... Ke7
{[%clk 0:01:23]} 57. Qd7# {[%clk 0:03:38]} 1-0

[Variant "Standard"]
[Site "Europe Echecs"]

[Event "Championnat du monde jeunes U12F"]
[Date "2024.11.25"]
[White "Qiu, Laurie"]
[Black "Aadya Ranganath"]
[WhiteElo "1994"]
[BlackElo "1753"]
[Round "10.9"]
[Result "1-0"]
[TimeControl "5400+30"]

1. e4 {[%clk 1:30:58]} 1... e5 {[%clk 1:30:55]} 2. Nf3 {[%clk 1:31:23]} 2... Nc6
{[%clk 1:31:21]} 3. Nc3 {[%clk 1:31:46]} 3... Nf6 {[%clk 1:31:46]} 4. h3 {[%clk
1:32:06]} 4... Bc5 {[%clk 1:30:26]} 5. Nxe5 {[%clk 1:32:10]} 5... Nxe5 {[%clk
1:30:11]} 6. d4 {[%clk 1:32:34]} 6... Bxd4 {[%clk 1:27:35]} 7. Qxd4 {[%clk
1:32:36]} 7... Nc6 {[%clk 1:27:52]} 8. Qd1 {[%clk 1:26:53]} 8... h6 {[%clk
1:24:50]} 9. Bd3 {[%clk 1:24:59]} 9... O-O {[%clk 1:23:52]} 10. O-O {[%clk
1:24:22]} 10... d6 {[%clk 1:22:21]} 11. f4 {[%clk 1:22:03]} 11... Re8 {[%clk
1:14:43]} 12. Qf3 {[%clk 1:19:02]} 12... Bd7 {[%clk 1:04:05]} 13. Ne2 {[%clk
1:11:40]} 13... Qe7 {[%clk 0:51:53]} 14. Ng3 {[%clk 1:09:14]} 14... Nd4 {[%clk
0:51:12]} 15. Qf2 {[%clk 1:08:38]} 15... c5 {[%clk 0:49:39]} 16. b3 {[%clk
1:02:58]} 16... Nc6 {[%clk 0:38:16]} 17. Bb2 {[%clk 0:59:22]} 17... Nb4 {[%clk
0:37:33]} 18. Rae1 {[%clk 0:58:32]} 18... Nxd3 {[%clk 0:35:28]} 19. cxd3 {[%clk
0:58:54]} 19... a5 {[%clk 0:34:30]} 20. e5 {[%clk 0:50:49]} 20... Nd5 {[%clk
0:32:03]} 21. Ne4 {[%clk 0:47:09]} 21... dxe5 {[%clk 0:29:13]} 22. fxe5 {[%clk
0:46:13]} 22... b6 {[%clk 0:27:42]} 23. Qg3 {[%clk 0:42:37]} 23... Kh8 {[%clk
0:26:00]} 24. e6 {[%clk 0:40:04]} 24... fxe6 {[%clk 0:26:14]} 25. Qg6 {[%clk
0:38:50]} 25... Kg8 {[%clk 0:24:10]} 26. Ng3 {[%clk 0:32:47]} 26... Qg5 {[%clk
0:19:02]} 27. Qf7+ {[%clk 0:32:31]} 27... Kh8 {[%clk 0:18:55]} 28. Ne4 {[%clk
0:32:37]} 28... Qe7 {[%clk 0:18:08]} 29. Bxg7+ {[%clk 0:32:11]} 29... Kh7 {[%clk
0:18:34]} 30. Be5+ {[%clk 0:32:23]} 30... Qxf7 {[%clk 0:18:48]} 31. Rxf7+ {[%clk
0:32:47]} 31... Kg6 {[%clk 0:18:31]} 32. Rxd7 {[%clk 0:33:00]} 32... Rad8 {[%clk
0:18:48]} 33. Rg7+ {[%clk 0:33:13]} 33... Kf5 {[%clk 0:19:13]} 34. Ng3# {[%clk
0:33:32]} 1-0

[Variant "Standard"]
[Site "Europe Echecs"]

[Event "Championnat du monde jeunes U12F"]
[Date "2024.11.25"]
[White "Siskou, Evangelia"]
[Black "Siddhi Rao"]
[WhiteElo "1884"]
[BlackElo "1677"]
[Round "10.10"]
[Result "1-0"]
[TimeControl "5400+30"]

1. c4 {[%clk 1:30:54]} 1... e5 {[%clk 1:30:55]} 2. g3 {[%clk 1:31:16]} 2... c6
{[%clk 1:31:21]} 3. d4 {[%clk 1:31:37]} 3... Bb4+ {[%clk 1:31:47]} 4. Bd2 {[%clk
1:31:31]} 4... Bxd2+ {[%clk 1:32:10]} 5. Qxd2 {[%clk 1:31:56]} 5... d6 {[%clk
1:32:35]} 6. Bg2 {[%clk 1:31:15]} 6... Nf6 {[%clk 1:32:46]} 7. Nc3 {[%clk
1:30:11]} 7... O-O {[%clk 1:33:08]} 8. Rd1 {[%clk 1:27:15]} 8... Nbd7 {[%clk
1:26:25]} 9. d5 {[%clk 1:21:49]} 9... cxd5 {[%clk 1:09:44]} 10. Nxd5 {[%clk
1:21:45]} 10... Nb6 {[%clk 1:07:38]} 11. Nxf6+ {[%clk 1:21:21]} 11... Qxf6
{[%clk 1:07:59]} 12. b3 {[%clk 1:21:41]} 12... Be6 {[%clk 1:06:02]} 13. Bxb7
{[%clk 1:18:15]} 13... Rab8 {[%clk 1:05:34]} 14. Bg2 {[%clk 1:18:24]} 14... Rfd8
{[%clk 1:05:23]} 15. Nf3 {[%clk 1:17:39]} 15... Rbc8 {[%clk 1:04:06]} 16. Qe3
{[%clk 1:04:28]} 16... h6 {[%clk 0:57:19]} 17. O-O {[%clk 1:04:04]} 17... Qg6
{[%clk 0:56:11]} 18. Rd2 {[%clk 0:58:55]} 18... Bxc4 {[%clk 0:48:34]} 19. bxc4
{[%clk 0:49:05]} 19... Nxc4 {[%clk 0:48:52]} 20. Qxa7 {[%clk 0:49:28]} 20... Ra8
{[%clk 0:43:19]} 21. Qe7 {[%clk 0:45:39]} 21... Re8 {[%clk 0:39:49]} 22. Qd7
{[%clk 0:40:30]} 22... Red8 {[%clk 0:38:01]} 23. Qc7 {[%clk 0:39:25]} 23... Rdc8
{[%clk 0:34:04]} 24. Qb7 {[%clk 0:37:34]} 24... Rab8 {[%clk 0:29:28]} 25. Qd7
{[%clk 0:34:22]} 25... Nxd2 {[%clk 0:23:54]} 26. Nxd2 {[%clk 0:34:50]} 26... Qc2
{[%clk 0:23:18]} 27. Ne4 {[%clk 0:33:42]} 27... Rd8 {[%clk 0:22:25]} 28. Qe7
{[%clk 0:30:25]} 28... Re8 {[%clk 0:18:03]} 29. Qxd6 {[%clk 0:28:16]} 29... Qxa2
{[%clk 0:18:21]} 30. Qd7 {[%clk 0:23:55]} 30... Qe6 {[%clk 0:11:54]} 31. Qa7
{[%clk 0:19:34]} 31... Rb2 {[%clk 0:11:12]} 32. Qe3 {[%clk 0:16:05]} 32... Qb6
{[%clk 0:08:14]} 33. Qf3 {[%clk 0:15:15]} 33... Rd8 {[%clk 0:06:59]} 34. Qh5
{[%clk 0:14:10]} 34... Qb5 {[%clk 0:04:35]} 35. Bf3 {[%clk 0:13:04]} 35... Rb1
{[%clk 0:03:09]} 36. Rxb1 {[%clk 0:12:53]} 36... Qxb1+ {[%clk 0:03:37]} 37. Kg2
{[%clk 0:13:22]} 37... Qb5 {[%clk 0:01:24]} 38. g4 {[%clk 0:13:21]} 38... Qe8
{[%clk 0:00:37]} 39. g5 {[%clk 0:12:48]} 39... Qe6 {[%clk 0:00:35]} 40. Qh4
{[%clk 0:08:43]} 40... Qg6 {[%clk 0:00:33]} 41. Bh5 {[%clk 0:08:50]} 41... hxg5
{[%clk 0:00:44]} 42. Nxg5 {[%clk 0:09:01]} 42... Qc6+ {[%clk 0:00:54]} 43. e4
{[%clk 0:06:58]} 43... Rf8 {[%clk 0:00:45]} 44. Qh3 {[%clk 0:05:00]} 44... Qf6
{[%clk 0:00:39]} 45. Qg3 {[%clk 0:03:12]} 45... g6 {[%clk 0:00:38]} 46. Be2
{[%clk 0:03:41]} 46... Rc8 {[%clk 0:00:36]} 47. h4 {[%clk 0:03:38]} 47... Rc2
{[%clk 0:00:35]} 48. Bd1 {[%clk 0:03:24]} 48... Rd2 {[%clk 0:00:42]} 49. Bb3
{[%clk 0:03:34]} 49... Rd7 {[%clk 0:00:50]} 50. h5 {[%clk 0:02:45]} 50... Qg7
{[%clk 0:00:48]} 51. Nxf7 {[%clk 0:02:47]} 51... Rxf7 {[%clk 0:01:04]} 52. hxg6
{[%clk 0:03:07]} 52... Kf8 {[%clk 0:01:19]} 53. gxf7 {[%clk 0:03:29]} 53... Qh7
{[%clk 0:01:27]} 54. Qg8+ {[%clk 0:03:50]} 54... Qxg8+ {[%clk 0:01:52]} 55.
fxg8=Q+ {[%clk 0:04:11]} 55... Ke7 {[%clk 0:02:18]} 56. Qd5 {[%clk 0:04:17]}
56... Kf6 {[%clk 0:02:43]} 57. Qf7+ {[%clk 0:04:40]} 57... Kg5 {[%clk 0:03:07]}
58. Kg3 {[%clk 0:04:29]} 58... Kh6 {[%clk 0:03:29]} 59. Bd1 {[%clk 0:04:30]}
59... Kg5 {[%clk 0:03:51]} 60. Qg7# {[%clk 0:04:51]} 1-0

[Variant "Standard"]
[Site "Europe Echecs"]

[Event "Championnat du monde jeunes U12F"]
[Date "2024.11.25"]
[White "Illes-Nagy, Nora"]
[Black "Sri Darshini T"]
[WhiteElo "1803"]
[BlackElo "1681"]
[Round "10.11"]
[Result "1/2-1/2"]
[TimeControl "5400+30"]

1. d4 {[%clk 1:30:58]} 1... Nf6 {[%clk 1:30:55]} 2. c4 {[%clk 1:31:23]} 2... e6
{[%clk 1:31:22]} 3. Nc3 {[%clk 1:31:48]} 3... Bb4 {[%clk 1:31:48]} 4. e3 {[%clk
1:32:05]} 4... O-O {[%clk 1:31:56]} 5. Bd3 {[%clk 1:32:22]} 5... d5 {[%clk
1:32:14]} 6. Nf3 {[%clk 1:32:28]} 6... c5 {[%clk 1:32:38]} 7. O-O {[%clk
1:32:12]} 7... dxc4 {[%clk 1:32:56]} 8. Bxc4 {[%clk 1:32:33]} 8... cxd4 {[%clk
1:33:21]} 9. exd4 {[%clk 1:32:15]} 9... b6 {[%clk 1:33:31]} 10. Bg5 {[%clk
1:31:30]} 10... Bb7 {[%clk 1:33:07]} 11. a3 {[%clk 1:27:01]} 11... Be7 {[%clk
1:32:23]} 12. Ne5 {[%clk 1:23:56]} 12... Nc6 {[%clk 1:30:10]} 13. Nxc6 {[%clk
1:20:18]} 13... Bxc6 {[%clk 1:30:28]} 14. Qd3 {[%clk 1:18:24]} 14... Qd7 {[%clk
1:23:46]} 15. Rfe1 {[%clk 1:14:57]} 15... Rfd8 {[%clk 1:21:06]} 16. Rad1 {[%clk
1:10:09]} 16... Nd5 {[%clk 1:16:12]} 17. Nxd5 {[%clk 1:00:07]} 17... Bxg5 {[%clk
1:15:57]} 18. Nb4 {[%clk 1:00:01]} 18... Rac8 {[%clk 1:07:14]} 19. d5 {[%clk
0:55:08]} 19... exd5 {[%clk 1:04:35]} 20. Nxd5 {[%clk 0:54:41]} 20... Bxd5
{[%clk 0:52:54]} 21. Bxd5 {[%clk 0:54:06]} 21... Re8 {[%clk 0:48:06]} 22. Qb3
{[%clk 0:51:16]} 22... Rxe1+ {[%clk 0:46:31]} 23. Rxe1 {[%clk 0:51:41]} 23... g6
{[%clk 0:44:51]} 24. g3 {[%clk 0:51:38]} 24... Kg7 {[%clk 0:44:34]} 25. Rd1
{[%clk 0:46:21]} 25... Qf5 {[%clk 0:43:04]} 26. Qf3 {[%clk 0:38:07]} 26... Rc1
{[%clk 0:38:30]} 27. b3 {[%clk 0:37:15]} 27... Qxf3 {[%clk 0:35:42]} 28. Bxf3
{[%clk 0:37:33]} 28... Rxd1+ {[%clk 0:36:00]} 29. Bxd1 {[%clk 0:37:56]} 29...
Be7 {[%clk 0:35:58]} 30. a4 {[%clk 0:38:19]} 30... Kf6 {[%clk 0:35:43]} 31. Be2
{[%clk 0:38:03]} 31... Ke5 {[%clk 0:33:38]} 32. Kg2 {[%clk 0:38:01]} 32... Bc5
{[%clk 0:33:13]} 33. Bc4 {[%clk 0:37:42]} 33... Kf6 {[%clk 0:30:28]} 34. Kf3
{[%clk 0:35:49]} 34... a5 {[%clk 0:30:23]} 35. Ke2 {[%clk 0:35:46]} 35... Ke7
{[%clk 0:30:47]} 36. f3 {[%clk 0:35:57]} 36... Bg1 {[%clk 0:29:40]} 37. h3
{[%clk 0:36:19]} 37... Bc5 {[%clk 0:29:57]} 38. Kd3 {[%clk 0:36:30]} 38... Bd6
{[%clk 0:29:46]} 39. g4 {[%clk 0:36:31]} 39... f5 {[%clk 0:27:34]} 40. Ke3
{[%clk 0:35:47]} 40... Kf6 {[%clk 0:25:54]} 41. Kf2 {[%clk 0:35:35]} 41... f4
{[%clk 0:24:44]} 42. Bg8 {[%clk 0:35:28]} 42... h6 {[%clk 0:25:03]} 43. Bc4
{[%clk 0:35:50]} 43... Ke5 {[%clk 0:24:24]} 44. Ke2 {[%clk 0:36:04]} 44... Kd4
{[%clk 0:24:14]} 45. Bf7 {[%clk 0:36:00]} 45... g5 {[%clk 0:24:37]} 46. Bc4
{[%clk 0:36:22]} 46... Bb4 {[%clk 0:24:37]} 47. Bf7 {[%clk 0:36:25]} 47... Bc3
{[%clk 0:24:10]} 48. Bc4 {[%clk 0:36:43]} 48... Bb4 {[%clk 0:24:24]} 1/2-1/2

[Variant "Standard"]
[Site "Europe Echecs"]

[Event "Championnat du monde jeunes U12F"]
[Date "2024.11.25"]
[White "Ivaschenko, Anna"]
[Black "Rzadkowska, Kaja"]
[WhiteElo "1732"]
[BlackElo "1798"]
[Round "10.12"]
[Result "1/2-1/2"]
[TimeControl "5400+30"]

1. Nf3 {[%clk 1:30:57]} 1... Nf6 {[%clk 1:30:56]} 2. c4 {[%clk 1:31:23]} 2... e6
{[%clk 1:30:36]} 3. g3 {[%clk 1:31:48]} 3... d5 {[%clk 1:30:58]} 4. Bg2 {[%clk
1:32:12]} 4... c5 {[%clk 1:30:59]} 5. cxd5 {[%clk 1:32:17]} 5... exd5 {[%clk
1:31:22]} 6. d4 {[%clk 1:32:40]} 6... Nc6 {[%clk 1:31:43]} 7. O-O {[%clk
1:23:44]} 7... Be7 {[%clk 1:31:11]} 8. dxc5 {[%clk 1:19:34]} 8... Bxc5 {[%clk
1:30:07]} 9. Bg5 {[%clk 1:10:42]} 9... Be6 {[%clk 1:23:32]} 10. Nc3 {[%clk
1:07:52]} 10... d4 {[%clk 1:20:50]} 11. Bxf6 {[%clk 1:03:37]} 11... Qxf6 {[%clk
1:19:48]} 12. Ne4 {[%clk 1:03:42]} 12... Qe7 {[%clk 1:19:51]} 13. Nxc5 {[%clk
1:03:36]} 13... Qxc5 {[%clk 1:20:18]} 14. a3 {[%clk 0:57:15]} 14... O-O {[%clk
1:17:52]} 15. b4 {[%clk 0:56:33]} 15... Qb6 {[%clk 1:17:29]} 16. Qd3 {[%clk
0:54:44]} 16... Rad8 {[%clk 1:10:23]} 17. Ng5 {[%clk 0:50:17]} 17... g6 {[%clk
1:09:56]} 18. Nxe6 {[%clk 0:47:53]} 18... fxe6 {[%clk 1:09:24]} 19. Qe4 {[%clk
0:42:22]} 19... e5 {[%clk 1:02:34]} 20. Kh1 {[%clk 0:38:32]} 20... Rde8 {[%clk
0:59:22]} 21. Rac1 {[%clk 0:27:25]} 21... Re7 {[%clk 0:54:10]} 22. f4 {[%clk
0:24:21]} 22... Kg7 {[%clk 0:40:08]} 23. Rc5 {[%clk 0:17:24]} 23... Ref7 {[%clk
0:37:20]} 24. Rfc1 {[%clk 0:13:13]} 24... exf4 {[%clk 0:33:41]} 25. b5 {[%clk
0:12:27]} 25... Nd8 {[%clk 0:27:39]} 26. Qxd4+ {[%clk 0:11:27]} 26... Qf6 {[%clk
0:26:18]} 27. Qxf6+ {[%clk 0:08:32]} 27... Rxf6 {[%clk 0:26:02]} 28. gxf4 {[%clk
0:06:01]} 28... Rxf4 {[%clk 0:25:47]} 29. Rc8 {[%clk 0:03:56]} 29... R4f7 {[%clk
0:21:25]} 30. Bd5 {[%clk 0:03:32]} 30... Rf5 {[%clk 0:15:44]} 31. e4 {[%clk
0:02:41]} 31... Rf2 {[%clk 0:12:52]} 32. R8c7+ {[%clk 0:01:59]} 32... Kh6 {[%clk
0:12:16]} 33. R7c2 {[%clk 0:00:43]} 33... R2f4 {[%clk 0:09:39]} 34. e5 {[%clk
0:00:40]} 34... Rd4 {[%clk 0:09:01]} 35. Bg2 {[%clk 0:00:38]} 35... Rd3 {[%clk
0:08:09]} 36. Re1 {[%clk 0:00:34]} 36... Rxa3 {[%clk 0:07:24]} 37. Rc7 {[%clk
0:00:43]} 37... Ra2 {[%clk 0:05:17]} 38. Rd7 {[%clk 0:00:32]} 38... Rb2 {[%clk
0:03:52]} 39. Bxb7 {[%clk 0:00:32]} 39... Nxb7 {[%clk 0:03:38]} 40. Rxb7 {[%clk
0:00:52]} 40... Rff2 {[%clk 0:03:56]} 41. e6 {[%clk 0:00:33]} 41... Rxh2+ {[%clk
0:04:01]} 42. Kg1 {[%clk 0:00:59]} 42... Rbg2+ {[%clk 0:03:11]} 43. Kf1 {[%clk
0:01:25]} 43... Rf2+ {[%clk 0:02:04]} 44. Kg1 {[%clk 0:01:51]} 44... Rfg2+
{[%clk 0:02:05]} 45. Kf1 {[%clk 0:02:17]} 45... Rf2+ {[%clk 0:02:30]} 1/2-1/2

[Variant "Standard"]
[Site "Europe Echecs"]